bitfinex-derivatives/quotes_SOLF0:USTF0_20250409
["timestamp","ask_amount","ask_price","bid_price","bid_amount"]
[1744233943621,8.43642351,119.31,119.26,39.04]
[1744233944215,8.43642351,119.29,119.26,39.04]
[1744233944612,8.43642351,119.29,119.26,39.09954437]
[1744233944613,8.49269963,119.29,119.26,39.09954437]
[1744233947617,0.05627612,119.29,119.26,39.09954437]
[1744233947814,8.49269963,119.29,119.26,39.09954437]
[1744233949720,8.49269963,119.29,119.26,0.05954437]
[1744233950723,8.43642351,119.27,119.19,39.04]
[1744233950923,8.43642351,119.27,119.21,8.43642351]
[1744233951123,8.43642351,119.27,119.2,8.43642351]
[1744233951423,8.43642351,119.25,119.19,39.04]
[1744233951911,0.05485483,119.23,119.21,0.05953597]
[1744233959629,8.49127834,119.23,119.21,0.05953597]
[1744233962627,0.05485483,119.23,119.21,0.05953597]
[1744233963433,0.05485483,119.23,119.21,8.49595948]
[1744233963620,0.05485483,119.23,119.22,38.38]
[1744233966623,8.8639,119.28,119.22,100.38]
[1744233967128,359.0,119.33,119.25,8.43642351]
[1744233967330,363.6338,119.33,119.26,40.68]
[1744233967632,8.43642351,119.31,119.26,40.68]
[1744233967928,8.50044391,119.31,119.28,0.05991081]
[1744233968117,0.0640204,119.31,119.28,0.05991081]
[1744233968715,8.50044391,119.31,119.28,0.05991081]
[1744233969127,0.0640204,119.31,119.28,0.05991081]
[1744233981936,0.0640204,119.31,119.28,8.56531081]
[1744233982236,4.6002,119.38,119.29,13.1565271]
[1744233982426,4.6002,119.38,119.3,44.02]
[1744233983126,13.1565271,119.37,119.3,44.02]
[1744233983326,4.6002,119.38,119.32,0.06328077]
[1744233983530,0.061388,119.35,119.32,0.06328077]
[1744233984041,0.061388,119.35,119.32,62.06328077]
[1744233985440,0.061388,119.35,119.32,0.06328077]
[1744233988340,0.061388,119.35,119.33,62.0]
[1744233988533,0.061388,119.35,119.34,44.02]
[1744233993645,0.061388,119.35,119.34,52.42959985]
[1744233993846,8.6926,119.4,119.34,52.42959985]
[1744233994046,4.4771,119.4,119.36,8.40959985]
[1744233995149,0.06385278,119.39,119.37,0.05554078]
[1744233997248,0.06385278,119.39,119.38,44.0]
[1744233998455,0.06385278,119.39,119.38,52.40959985]
[1744233998846,17.11659985,119.44,119.38,52.40959985]
[1744234000045,0.05216692,119.42,119.4,0.05664023]
[1744234000854,0.05216692,119.42,119.4,8.46624008]
[1744234003160,93.5196296,119.53,119.4,16.84624008]
[1744234003351,12.97489985,119.5,119.43,8.40959985]
[1744234003656,12.97489985,119.5,119.44,43.28]
[1744234004257,12.97489985,119.5,119.46,0.06396697]
[1744234004648,12.97489985,119.5,119.46,43.34396697]
[1744234005455,54.73179494,119.52,119.46,43.34396697]
[1744234006148,54.73179494,119.52,119.47,8.40959985]
[1744234006462,8.40959985,119.52,119.47,8.40959985]
[1744234008370,4.4989,119.54,119.47,8.40959985]
[1744234008571,12.90849985,119.54,119.47,8.40959985]
[1744234008873,8.40959985,119.52,119.49,0.06222672]
[1744234010166,4.4989,119.54,119.49,0.06222672]
[1744234010364,8.40959985,119.51,119.49,0.06222672]
[1744234010670,8.40959985,119.51,119.46,43.28]
[1744234011078,4.3316,119.5,119.46,43.28]
[1744234011675,8.9502,119.5,119.46,43.28]
[1744234011877,8.47033531,119.49,119.47,0.06438247]
[1744234017780,0.06073546,119.49,119.47,0.06438247]
[1744234020483,8.47033531,119.49,119.43,8.40959985]
[1744234020676,8.40959985,119.47,119.41,611.02959985]
[1744234020876,8.40959985,119.47,119.41,602.62]
[1744234021179,8.40959985,119.47,119.41,611.02959985]
[1744234021686,0.05469592,119.45,119.43,0.05581937]
[1744234022182,8.46429577,119.45,119.41,8.40959985]
[1744234022388,9.0645,119.44,119.37,41.76]
[1744234022681,8.40959985,119.43,119.38,8.40959985]
[1744234023488,0.0546163,119.42,119.39,0.06077019]
[1744234029591,13.18121408,119.42,119.39,0.06077019]
[1744234033789,13.12659778,119.4,119.31,41.78]
[1744234034094,13.12659778,119.36,119.28,41.78]
[1744234034296,4.6185,119.35,119.28,41.78]
[1744234034594,13.12659778,119.34,119.28,41.78]
[1744234034793,50.1626,119.33,119.22,56.36522801]
[1744234034998,13.12659778,119.3,119.22,56.36522801]
[1744234035200,4.6185,119.29,119.22,41.78]
[1744234035497,0.06309684,119.27,119.26,0.06445662]
[1744234035793,0.06309684,119.27,119.22,41.78]
[1744234036496,4.46919684,119.27,119.22,41.78]
[1744234036992,4.46919684,119.27,119.23,0.06140782]
[1744234038797,13.12659778,119.26,119.23,0.06140782]
[1744234038998,17.41499778,119.26,119.23,0.06140782]
[1744234040596,4.46919684,119.27,119.23,0.06140782]
[1744234040802,0.06309684,119.27,119.23,41.86140782]
[1744234043803,0.06309684,119.27,119.24,62.0]
[1744234046395,359.0,119.38,119.24,75.12659778]
[1744234046599,13.12659778,119.34,119.24,75.12659778]
[1744234046807,13.12659778,119.34,119.24,86.63919778]
[1744234047604,0.06015176,119.3,119.28,0.0557828]
[1744234051603,13.18674954,119.3,119.28,0.0557828]
[1744234052007,21.57164954,119.3,119.24,40.78]
[1744234052193,4.5886,119.29,119.22,603.46]
[1744234053102,0.05493244,119.27,119.24,0.05795392]
[1744234053806,13.12659778,119.26,119.18,40.8]
[1744234054511,13.12659778,119.26,119.18,102.8]
[1744234054706,13.12659778,119.22,119.16,603.54]
[1744234054899,13.12659778,119.22,119.15,40.8]
[1744234055100,0.0642698,119.2,119.18,0.05971205]
[1744234055502,40.8,119.19,119.09,40.8]
[1744234055806,13.12659778,119.18,119.09,40.8]
[1744234056106,13.12659778,119.16,119.09,40.8]
[1744234056610,0.0569325,119.14,119.11,0.06201459]
[1744234060312,13.12659778,119.13,119.11,0.06201459]
[1744234061313,13.12659778,119.13,119.02,40.82]
[1744234061496,13.12659778,119.11,119.02,40.82]
[1744234062416,0.0549142,119.08,119.05,0.06224599]
[1744234064016,0.0549142,119.08,119.06,40.82]
[1744234064405,0.0549142,119.08,119.07,62.0]
[1744234064819,0.0549142,119.08,119.06,40.82]
[1744234067912,0.0549142,119.08,119.06,102.82]
[1744234069113,0.0549142,119.08,119.06,111.7887]
[1744234075723,0.0549142,119.08,119.06,70.9687]
[1744234077120,0.0549142,119.08,119.07,40.84]
[1744234081926,4.2264,119.15,119.07,40.84]
[1744234082932,4.2264,119.15,119.08,62.0]
[1744234083133,0.05489887,119.12,119.1,0.05421395]
[1744234086250,13.24955581,119.12,119.1,0.05421395]
[1744234087743,0.05489887,119.12,119.1,0.05421395]
[1744234093242,0.05489887,119.12,119.05,62.0]
[1744234093436,13.24955581,119.12,119.05,62.0]
[1744234094349,13.19465694,119.1,119.02,39.54]
[1744234094549,52.73465694,119.1,119.07,0.05296938]
[1744234094948,52.79042532,119.1,119.07,0.05296938]
[1744234095146,52.79042532,119.1,119.02,39.54]
[1744234095447,13.19465694,119.08,119.02,39.54]
[1744234095749,13.19465694,119.09,119.02,39.54]
[1744234096349,0.06046648,119.07,119.04,0.05871262]
[1744234102451,0.06046648,119.07,119.05,39.56]
[1744234117276,0.06046648,119.07,119.05,48.00722737]
[1744234119669,8.6918,119.13,119.05,48.00722737]
[1744234119868,10.55707977,119.12,119.06,10.55707977]
[1744234120974,0.05599071,119.1,119.08,0.05973217]
[1744234123466,0.05599071,119.1,119.08,10.61681194]
[1744234123672,0.05599071,119.1,119.09,38.62]
[1744234125177,4.3345,119.15,119.09,38.62]
[1744234125382,4.3345,119.15,119.1,10.55707977]
[1744234126076,10.55707977,119.17,119.12,10.55707977]
[1744234126277,0.05679605,119.14,119.13,38.62]
[1744234128780,14.89207977,119.19,119.13,38.62]
[1744234128982,14.89207977,119.19,119.14,62.0]
[1744234129285,10.55707977,119.19,119.14,72.55707977]
[1744234129983,0.05359755,119.18,119.15,0.05984016]
[1744234130986,0.05359755,119.18,119.16,10.55707977]
[1744234131176,0.05359755,119.18,119.17,38.6]
[1744234131578,8.6184,119.22,119.17,38.6]
[1744234131884,10.55707977,119.24,119.18,10.55707977]
[1744234132786,0.05330473,119.22,119.2,0.05306597]
[1744234133870,0.05330473,119.22,119.21,38.6]
[1744234134080,62.31333002,119.31,119.21,117.06108936]
[1744234134287,4.6224,119.3,119.23,16.46108936]
[1744234135080,0.06040211,119.28,119.23,16.46108936]
[1744234135286,0.06040211,119.28,119.25,0.05437693]
[1744234135487,0.06040211,119.28,119.25,38.65437693]
[1744234136777,0.06040211,119.28,119.25,0.05437693]
[1744234136981,16.52149147,119.28,119.21,38.58]
[1744234137178,16.46108936,119.28,119.21,38.58]
[1744234137486,16.46108936,119.26,119.21,38.58]
[1744234137682,9.1117,119.25,119.21,38.58]
[1744234138091,0.06202311,119.24,119.22,0.05429101]
[1744234144290,4.6447,119.3,119.23,16.46108936]
[1744234145290,0.05774246,119.28,119.25,0.0540455]
[1744234145490,0.05774246,119.28,119.26,38.56]
[1744234146200,4.5169,119.33,119.26,38.56]
[1744234146396,4.5169,119.33,119.27,16.46108936]
[1744234147197,0.05600001,119.31,119.29,0.05471487]
[1744234147397,0.05600001,119.31,119.3,38.56]
[1744234148204,0.05600001,119.31,119.3,100.56]
[1744234148404,4.5169,119.33,119.3,100.56]
[1744234148802,25.45528936,119.37,119.3,100.56]
[1744234149005,29.73538936,119.37,119.3,100.56]
[1744234149502,0.06397266,119.35,119.32,0.06289197]
[1744234154412,16.52506202,119.35,119.32,0.06289197]
[1744234154712,16.52506202,119.35,119.3,38.56]
[1744234155915,16.52506202,119.35,119.31,0.05886997]
[1744234156206,16.46108936,119.33,119.3,38.56]
[1744234156407,4.3593,119.32,119.3,38.56]
[1744234156608,8.843,119.32,119.3,38.56]
[1744234157211,8.90735999,119.32,119.3,0.05981725]
[1744234157716,16.46108936,119.31,119.26,642.24]
[1744234157902,8.90735999,119.32,119.26,642.24]
[1744234158106,8.90735999,119.32,119.26,658.70108936]
[1744234158820,8.90735999,119.32,119.28,0.06377202]
[1744234170525,16.43701777,119.31,119.28,0.06377202]
[1744234171126,8.90735999,119.32,119.28,0.06377202]
[1744234171327,16.43701777,119.31,119.28,0.06377202]
[1744234172224,16.43701777,119.31,119.26,38.54]
[1744234172527,56.45701777,119.31,119.23,40.02]
[1744234172729,16.43701777,119.29,119.23,40.02]
[1744234173121,16.43701777,119.27,119.2,643.38]
[1744234173318,8.8883,119.26,119.2,643.38]
[1744234173519,0.05619257,119.25,119.22,0.05780864]
[1744234173723,16.49321034,119.25,119.22,0.05780864]
[1744234174433,0.05619257,119.25,119.22,0.05780864]
[1744234175930,0.05619257,119.25,119.17,40.02]
[1744234176233,367.8883,119.26,119.17,40.02]
[1744234177138,0.06450873,119.23,119.2,0.05856939]
[1744234183533,16.5015265,119.23,119.2,0.05856939]
[1744234184240,16.43701777,119.21,119.11,16.43701777]
[1744234184542,4.3104,119.2,119.11,4.3811]
[1744234184731,8.7624,119.2,119.11,4.3811]
[1744234185130,16.43701777,119.19,119.1,40.04]
[1744234185329,0.06148861,119.16,119.1,40.04]
[1744234185538,0.06148861,119.16,119.13,0.06396805]
[1744234197452,16.43701777,119.15,119.13,0.06396805]
[1744234200150,55.01701777,119.15,119.07,43.0906]
[1744234200351,4.4052,119.14,119.08,62.0]
[1744234201141,0.06368485,119.12,119.1,0.06012544]
[1744234201341,10.55776891,119.11,119.1,0.06012544]
[1744234201547,10.62145376,119.12,119.1,0.06012544]
[1744234203653,10.62145376,119.12,119.04,38.58]
[1744234203846,10.55776891,119.09,119.04,38.58]
[1744234204153,8.3967,119.13,119.04,38.58]
[1744234204348,8.3967,119.13,119.05,62.0]
[1744234204557,10.55776891,119.09,119.05,62.0]
[1744234204851,10.55776891,119.09,119.08,0.0539789]
[1744234205253,0.06407089,119.1,119.08,0.0539789]
[1744234227273,10.56282658,119.09,119.08,0.0539789]
[1744234232679,10.56282658,119.09,118.98,38.58]
[1744234232874,10.56282658,119.03,119.0,3.742]
[1744234233471,10.56282658,119.01,119.0,3.742]
[1744234234679,10.56282658,119.01,118.99,0.05563693]
[1744234237875,10.56282658,119.01,118.96,3.742]
[1744234238078,10.56282658,118.98,118.96,3.742]
[1744234238279,10.56282658,118.98,118.91,38.58]
[1744234238482,10.56282658,118.96,118.92,1.54402212]
[1744234238681,10.56282658,118.96,118.92,62.0]
[1744234239085,0.05550999,118.95,118.93,0.05812261]
[1744234241389,10.56282658,118.94,118.93,0.05812261]
[1744234243085,10.56282658,118.94,118.89,3.9114]
[1744234243383,10.56282658,118.91,118.89,3.9114]
[1744234244184,10.61608163,118.91,118.89,3.9666168]
[1744234245178,10.61608163,118.91,118.89,0.0552168]
[1744234247792,0.05325505,118.91,118.89,0.0552168]
[1744234248091,10.56282658,118.9,118.89,0.0552168]
[1744234254696,0.05325505,118.91,118.89,0.0552168]
[1744234261717,0.05325505,118.91,118.85,3.7409]
[1744234261718,10.56282658,118.9,118.85,3.7409]
[1744234262013,0.05325505,118.91,118.85,3.7409]
[1744234262216,10.56282658,118.86,118.85,3.7409]
[1744234263207,10.56282658,118.86,118.84,38.6]
[1744234265819,0.05784049,118.87,118.84,38.6]
[1744234266118,10.62066707,118.87,118.84,38.6]
[1744234266517,0.05784049,118.87,118.84,38.6]
[1744234269114,0.05784049,118.87,118.85,62.0]
[1744234273123,0.05784049,118.87,118.84,38.6]
[1744234273322,10.56282658,118.86,118.84,38.6]
[1744234273719,10.56282658,118.86,118.81,38.62]
[1744234273924,10.56282658,118.82,118.78,3.00361054]
[1744234274228,10.56282658,118.8,118.78,3.00361054]
[1744234275621,10.56282658,118.79,118.78,3.00361054]
[1744234277320,16.63961962,118.81,118.78,3.00361054]
[1744234282226,16.58556272,118.8,118.78,3.00361054]
[1744234284430,0.0540569,118.81,118.78,3.00361054]
[1744234285531,0.0540569,118.81,118.78,65.00361054]
[1744234288440,0.0540569,118.81,118.78,3.00361054]
[1744234291337,0.0540569,118.81,118.79,62.0]
[1744234291525,0.0540569,118.81,118.78,3.00361054]
[1744234294436,0.0540569,118.81,118.78,65.00361054]
[1744234296935,0.0540569,118.81,118.78,3.00361054]
[1744234299238,10.61366275,118.8,118.78,3.00361054]
[1744234299729,0.0540569,118.81,118.78,3.00361054]
[1744234300121,10.61366275,118.8,118.78,3.00361054]
[1744234305338,18.46946275,118.8,118.78,3.00361054]
[1744234307333,18.46946275,118.8,118.76,3.61058056]
[1744234307640,10.61366275,118.78,118.76,3.61058056]
[1744234307945,10.66952959,118.78,118.76,3.61058056]
[1744234308638,10.66952959,118.78,118.75,3.15037833]
[1744234308944,10.61366275,118.76,118.75,3.15037833]
[1744234316252,10.61366275,118.76,118.73,3.10780523]
[1744234316557,10.61366275,118.74,118.73,3.10780523]
[1744234316948,10.61366275,118.74,118.71,7.80025414]
[1744234317149,10.61366275,118.73,118.71,7.80025414]
[1744234317351,52.61366275,118.73,118.71,7.80025414]
[1744234318050,10.61366275,118.7,118.69,107.59848103]
[1744234318249,10.61366275,118.7,118.68,5.48974882]
[1744234319153,399.56,118.69,118.62,5.29031337]
[1744234319360,10.61366275,118.64,118.62,5.29031337]
[1744234321051,10.61366275,118.64,118.61,3.02312021]
[1744234321251,10.61366275,118.62,118.61,3.02312021]
[1744234321450,10.61366275,118.62,118.6,105.65165561]
[1744234323480,10.61366275,118.62,118.59,5.22208575]
[1744234323777,0.05641791,118.64,118.59,5.22208575]
[1744234323963,10.61366275,118.62,118.59,5.22208575]
[1744234324466,362.973,118.72,118.61,10.61366275]
[1744234324673,362.973,118.72,118.6,40.58]
[1744234324674,362.973,118.72,118.63,10.61366275]
[1744234324865,10.61366275,118.71,118.65,10.61366275]
[1744234325067,10.61366275,118.71,118.66,40.58]
[1744234325268,445.43224066,118.76,118.66,40.58]
[1744234325469,11.46306016,118.7,118.66,40.58]
[1744234325876,11.46306016,118.7,118.67,40.63820512]
[1744234326173,0.06295918,118.69,118.67,40.63820512]
[1744234326473,11.46306016,118.7,118.67,40.63820512]
[1744234327560,11.52416427,118.7,118.68,62.0]
[1744234328674,0.06110411,118.7,118.68,62.0]
[1744234330276,0.06110411,118.7,118.67,40.63820512]
[1744234330974,0.06110411,118.7,118.67,0.05820512]
[1744234331567,0.06110411,118.7,118.67,3.89060512]
[1744234333175,0.06110411,118.7,118.67,65.89060512]
[1744234336373,0.06110411,118.7,118.67,44.47060512]
[1744234338976,0.06110411,118.7,118.67,40.63820512]
[1744234341470,0.06110411,118.7,118.67,0.05820512]
[1744234349189,0.06110411,118.7,118.67,40.15820512]
[1744234351294,33.21157956,118.68,118.56,3.20479464]
[1744234351591,16.60578978,118.64,118.56,3.20479464]
[1744234351783,16.60578978,118.63,118.56,3.20479464]
[1744234351984,40.1,118.65,118.56,3.20479464]
[1744234352182,16.60578978,118.64,118.56,3.20479464]
[1744234352492,0.05828861,118.63,118.6,0.06276252]
[1744234354187,16.66407839,118.63,118.6,0.06276252]
[1744234354378,25.09607839,118.63,118.6,0.06276252]
[1744234354693,16.60578978,118.61,118.56,3.20479464]
[1744234354891,25.03938978,118.61,118.56,3.20479464]
[1744234355189,25.03938978,118.61,118.55,9.11672938]
[1744234355190,16.60578978,118.59,118.55,9.11672938]
[1744234355391,8.4383,118.54,118.53,3.30670478]
[1744234355692,65.14408978,118.54,118.51,7.11659665]
[1744234356283,16.60578978,118.52,118.47,8.00560257]
[1744234356482,16.60578978,118.48,118.47,8.00560257]
[1744234356680,25.04838978,118.48,118.47,8.00560257]
[1744234356884,25.04578978,118.48,118.44,2.10296414]
[1744234357092,16.60578978,118.45,118.44,2.10296414]
[1744234357395,56.72578978,118.45,118.42,6.18162158]
[1744234357595,16.60578978,118.43,118.42,6.18162158]
[1744234358002,359.0,118.42,118.38,3.67162485]
[1744234358295,415.72578978,118.41,118.38,3.67162485]
[1744234358485,16.60578978,118.39,118.38,3.67162485]
[1744234359188,16.60578978,118.39,118.37,2.19689513]
[1744234359398,385.73113636,118.4,118.37,2.19689513]
[1744234359698,359.0,118.39,118.36,2.11792297]
[1744234359892,26.73113636,118.37,118.34,6.2691743]
[1744234360092,40.14,118.36,118.31,2.48776133]
[1744234360292,26.73113636,118.32,118.26,97.78407458]
[1744234360596,40.14,118.31,118.26,97.78407458]
[1744234361290,359.0,118.3,118.26,97.78407458]
[1744234362999,359.0,118.3,118.26,6.42519915]
[1744234363389,26.78958621,118.32,118.26,6.42519915]
[1744234364395,26.78958621,118.32,118.26,46.58519915]
[1744234364694,0.05844985,118.32,118.26,46.58519915]
[1744234366894,359.0,118.36,118.27,26.73113636]
[1744234367196,26.73113636,118.38,118.29,611.6856]
[1744234367501,40.18,118.41,118.3,40.18]
[1744234367502,26.73113636,118.4,118.3,40.18]
[1744234367701,26.73113636,118.4,118.3,44.0601]
[1744234368104,0.05597894,118.36,118.34,0.05864651]
[1744234368305,0.05597894,118.36,118.34,40.25864651]
[1744234368504,359.0,118.42,118.34,40.25864651]
[1744234368710,359.0,118.42,118.34,40.2]
[1744234369008,359.0,118.42,118.33,26.73113636]
[1744234369203,359.0,118.42,118.34,40.2]
[1744234369706,0.05721862,118.39,118.37,0.06313207]
[1744234369897,359.0,118.42,118.38,40.2]
[1744234370097,26.73113636,118.45,118.38,44.0588]
[1744234371207,0.05712178,118.43,118.4,0.05513219]
[1744234373512,359.0,118.48,118.4,0.05513219]
[1744234373815,359.0,118.48,118.39,62.0]
[1744234374813,0.0647653,118.45,118.42,0.0574358]
[1744234375113,0.0647653,118.45,118.43,40.18]
[1744234376216,0.0647653,118.45,118.42,0.0574358]
[1744234377415,0.0647653,118.45,118.29,1.46956356]
[1744234377615,26.73113636,118.41,118.3,661.21716901]
[1744234377915,26.73113636,118.41,118.31,1.55146901]
[1744234378709,0.05598517,118.37,118.35,0.06264611]
[1744234378909,0.05598517,118.37,118.36,40.18]
[1744234380507,26.73113636,118.44,118.36,102.18]
[1744234380905,26.73113636,118.44,118.36,40.18]
[1744234381417,35.17653636,118.44,118.36,40.18]
[1744234381619,0.06420249,118.41,118.39,0.06445177]
[1744234383721,26.73113636,118.4,118.39,0.06445177]
[1744234384017,359.0,118.39,118.3,116.15631707]
[1744234384926,0.06241066,118.36,118.33,0.06167449]
[1744234390021,0.06241066,118.36,118.3,116.15631707]
[1744234390221,0.06241066,118.36,118.3,1.69061707]
[1744234390624,0.06241066,118.36,118.28,2.20916562]
[1744234390809,51.6914,118.37,118.28,2.20916562]
[1744234391324,0.05673154,118.34,118.31,0.05889014]
[1744234394720,11.5197917,118.34,118.31,0.05889014]
[1744234397626,38.25092806,118.34,118.31,0.05889014]
[1744234398224,26.7878679,118.34,118.31,0.05889014]
[1744234401132,47.38,118.33,118.28,2.20916562]
[1744234401331,26.73113636,118.31,118.28,2.20916562]
[1744234401634,406.38,118.33,118.28,2.04996562]
[1744234401635,26.73113636,118.32,118.28,2.04996562]
[1744234402134,8.4547,118.31,118.28,2.04996562]
[1744234402432,8.51880609,118.31,118.29,0.04249882]
[1744234404938,8.51880609,118.31,118.28,2.04996562]
[1744234406233,8.4555,118.3,118.28,2.04996562]
[1744234406832,433.13113636,118.29,118.26,6.42519915]
[1744234407127,433.13113636,118.29,118.24,3.67845682]
[1744234407332,26.73113636,118.25,118.23,2.09619282]
[1744234407844,35.18983636,118.26,118.23,2.09619282]
[1744234408133,0.05792119,118.25,118.23,2.09619282]
[1744234427249,16.80197782,118.25,118.23,2.09619282]
[1744234427450,0.05792119,118.25,118.23,2.09619282]
[1744234431757,16.80197782,118.25,118.22,4.3537809]
[1744234432052,16.74405663,118.23,118.22,4.3537809]
[1744234432454,16.74405663,118.24,118.22,4.3537809]
[1744234441865,45.67792119,118.25,118.22,4.3537809]
[1744234442067,16.74405663,118.24,118.22,4.3537809]
[1744234444264,62.42197782,118.25,118.22,4.3537809]
[1744234444470,16.80197782,118.25,118.22,4.3537809]
[1744234444766,16.74405663,118.25,118.22,8.4574809]
[1744234444960,45.85224066,118.26,118.22,8.4574809]
[1744234445265,16.74405663,118.25,118.22,8.4574809]
[1744234445857,16.80151963,118.25,118.22,8.51237892]
[1744234447074,16.74405663,118.23,118.22,4.40867892]
[1744234448079,16.74405663,118.23,118.21,2.04196919]
[1744234448276,16.74405663,118.23,118.2,2.45027629]
[1744234448479,16.74405663,118.21,118.2,2.45027629]
[1744234449880,0.05617706,118.22,118.2,2.45027629]
[1744234450178,16.80023369,118.22,118.2,2.45027629]
[1744234452784,16.80023369,118.22,118.18,14.2417094]
[1744234452785,16.74405663,118.2,118.18,14.2417094]
[1744234452971,16.80023369,118.22,118.18,14.2417094]
[1744234454183,33.48811326,118.2,118.13,7.88733155]
[1744234454482,16.74405663,118.17,118.14,6.1164]
[1744234455279,16.74405663,118.17,118.13,7.88733155]
[1744234455472,16.74405663,118.15,118.13,7.88733155]
[1744234456682,69.21025663,118.15,118.13,7.88733155]
[1744234456888,359.0,118.14,118.13,7.88733155]
[1744234457070,8.4683,118.12,118.11,2.5166508]
[1744234457479,25.21235663,118.12,118.11,2.5166508]
[1744234457685,25.21235663,118.12,118.1,2.40620011]
[1744234457887,359.0598881,118.13,118.1,2.40620011]
[1744234458275,359.0598881,118.13,118.1,8.64940011]
[1744234458688,16.74405663,118.12,118.1,2.40620011]
[1744234459494,8.469,118.11,118.08,2.19225525]
[1744234459681,16.74405663,118.1,118.08,2.19225525]
[1744234459883,16.74405663,118.11,118.08,2.19225525]
[1744234460386,16.74405663,118.09,118.08,2.19225525]
[1744234460785,45.9988186,118.11,118.08,2.19225525]
[1744234461394,62.74287523,118.11,118.08,2.19225525]
[1744234462383,71.21187523,118.11,118.08,2.19225525]
[1744234462580,62.74287523,118.11,118.08,2.19225525]
[1744234462784,0.0588186,118.11,118.08,2.19225525]
[1744234462986,16.74405663,118.15,118.09,6.0296]
[1744234463582,11.46306016,118.16,118.09,53.7096]
[1744234463776,34.3891805,118.17,118.1,16.74405663]
[1744234464185,91.70448135,118.18,118.12,16.80017668]
[1744234464380,73.65428135,118.18,118.13,47.68]
[1744234464581,71.21268135,118.18,118.14,18.43696335]
[1744234464782,71.21268135,118.18,118.14,627.93696335]
[1744234465102,34.44304751,118.22,118.14,636.39696335]
[1744234465290,34.44304751,118.22,118.14,637.9896498]
[1744234465587,34.44304751,118.22,118.15,3.30170886]
[1744234465792,34.44304751,118.22,118.16,28.48936325]
[1744234465992,34.44304751,118.22,118.17,109.68]
[1744234466493,26.79674308,118.24,118.17,47.68]
[1744234466690,26.79674308,118.24,118.18,0.05800699]
[1744234466894,0.0601973,118.21,118.18,0.05800699]
[1744234475802,359.0,118.29,118.18,26.85475007]
[1744234476098,359.0,118.29,118.18,28.4890768]
[1744234476300,36.22204308,118.3,118.2,26.79674308]
[1744234476499,36.22204308,118.3,118.21,52.52]
[1744234476707,9.4253,118.3,118.21,52.52]
[1744234477003,0.05405253,118.27,118.24,0.05507455]
[1744234478302,0.05405253,118.27,118.25,52.52]
[1744234481310,0.05405253,118.27,118.24,0.05507455]
[1744234490114,0.05405253,118.27,118.24,16.78897368]
[1744234490515,26.32729913,118.33,118.24,16.78897368]
[1744234490704,26.32729913,118.33,118.24,16.73389913]
[1744234491205,9.5934,118.33,118.26,16.73389913]
[1744234491406,384.3325,118.46,118.29,16.73389913]
[1744234491602,23.08379913,118.41,118.31,16.73389913]
[1744234491816,0.0583419,118.39,118.36,0.06480007]
[1744234492013,0.0583419,118.39,118.36,52.54480007]
[1744234493611,6.0476,118.44,118.37,608.78]
[1744234493811,26.70182605,118.48,118.37,635.48182605]
[1744234494117,9.34,118.48,118.39,26.70182605]
[1744234494417,6.0488,118.48,118.41,26.70182605]
[1744234494620,29.99302605,118.53,118.41,26.70182605]
[1744234494807,0.05617801,118.46,118.43,26.76290684]
[1744234495014,9.34,118.53,118.44,659.4]
[1744234496222,0.06177557,118.5,118.47,0.05599372]
[1744234497630,0.06177557,118.5,118.48,50.82]
[1744234499225,9.4596,118.57,118.48,50.82]
[1744234500025,9.4596,118.57,118.49,1.68790615]
[1744234500224,0.05955688,118.54,118.51,0.06171211]
[1744234500522,0.05955688,118.54,118.52,50.78]
[1744234500924,385.70182605,118.62,118.52,50.78]
[1744234501226,9.5751,118.61,118.52,50.78]
[1744234502126,0.06313407,118.58,118.55,0.06309931]
[1744234504023,0.06313407,118.58,118.55,50.82309931]
[1744234522234,0.06313407,118.58,118.57,8.4361]
[1744234525934,3.407e-05,118.58,118.57,8.4361]
[1744234530839,373.797,118.65,118.62,8.4322]
[1744234531043,6.3661,118.65,118.62,8.4322]
[1744234531434,6.3661,118.65,118.59,47.54]
[1744234531941,0.05382929,118.63,118.62,8.4326]
[1744234534647,2.929e-05,118.63,118.62,8.4326]
[1744234535246,2.929e-05,118.63,118.62,25.07651188]
[1744234535748,6.5039,118.69,118.62,16.64391188]
[1744234535937,6.5039,118.69,118.64,16.64391188]
[1744234536131,6.5039,118.69,118.68,8.4283]
[1744234536335,8.424,118.75,118.67,45.98]
[1744234536643,6.5454,118.73,118.68,45.98]
[1744234536846,0.06394776,118.72,118.7,0.06349274]
[1744234537243,0.06394776,118.72,118.71,8.4262]